fUST/lending_fUST_20250717
["ID","MTS","AMOUNT","RATE_DAILY","PERIOD"]
[372733381,1752748249601,-16546.21594871,0.00020383,3]
[372733383,1752748249611,-151.0,0.00020383,2]
[372733385,1752748249620,-168.410854,0.00020383,2]
[372733387,1752748249630,-533.45216914,0.00020384,2]
[372733389,1752748249639,-476.16111942,0.0002039,3]
[372733391,1752748249649,-12607.95677342,0.0002039,3]
[372733393,1752748249658,-214.44804168,0.0002039,3]
[372733395,1752748249668,-151.0,0.000204,3]
[372733397,1752748249678,-600.0,0.00020409,2]
[372733399,1752748249687,-260.0,0.00020431,2]
[372733401,1752748249696,-1500.0,0.00020468,2]
[372733403,1752748249706,-212.0,0.00020488,2]
[372733404,1752748249714,-212.0,0.00020538,2]
[372733405,1752748249723,-1304.83,0.00020559,2]
[372733406,1752748249732,-3403.72,0.00020561,2]
[372733407,1752748249742,-2746.61,0.00020561,2]
[372733408,1752748249751,-2633.16,0.00020561,2]
[372733409,1752748249760,-598.18,0.00020561,2]
[372733410,1752748249769,-322.63924152,0.00020561,2]
[372733411,1752748249779,-460.0,0.00020561,2]
[372733412,1752748249788,-1025.92,0.00020561,2]
[372733413,1752748249797,-1168.37,0.00020561,2]
[372733414,1752748249806,-533.73,0.00020561,2]
[372733415,1752748249815,-460.0,0.00020561,2]
[372733416,1752748249824,-460.0,0.00020563,2]
[372733417,1752748249834,-647.57,0.00020563,2]
[372733418,1752748249843,-543.85,0.00020563,2]
[372733419,1752748249852,-521.29,0.00020563,2]
[372733420,1752748249861,-843.3,0.00020563,2]
[372733421,1752748249870,-460.0,0.00020563,2]
[372733422,1752748249880,-485.68,0.00020563,2]
[372733423,1752748249889,-614.22,0.00020563,2]
[372733424,1752748249898,-460.0,0.00020563,2]
[372733425,1752748249908,-534.51,0.00020563,2]
[372733426,1752748249917,-460.0,0.00020563,2]
[372733427,1752748249926,-460.0,0.00020564,2]
[372733428,1752748249935,-3796.69,0.00020564,2]
[372733429,1752748249944,-460.0,0.00020564,2]
[372733430,1752748249953,-1252.7,0.00020564,2]
[372733432,1752748249962,-531.15,0.00020564,2]
[372733434,1752748249971,-1517.43,0.00020564,2]
[372733436,1752748249981,-460.0,0.00020564,2]
[372733438,1752748249990,-1578.46,0.00020565,2]
[372733440,1752748249999,-1512.69,0.00020565,2]
[372733442,1752748250009,-212.0,0.00020566,2]
[372733444,1752748250018,-539.39,0.00020568,2]
[372733446,1752748250028,-541.25,0.00020568,2]
[372733448,1752748250038,-566.44,0.00020568,2]
[372733450,1752748250047,-460.0,0.00020568,2]
[372733452,1752748250057,-475.56,0.00020568,2]
[372733454,1752748250066,-1182.36,0.00020568,2]
[372733456,1752748250078,-712.85,0.00020568,2]
[372733458,1752748250087,-2275.09,0.00020568,2]
[372733460,1752748250097,-460.0,0.00020568,2]
[372733462,1752748250106,-1525.12,0.00020568,2]
[372733464,1752748250117,-644.59,0.00020568,2]
[372733466,1752748250126,-4545.3,0.00020568,2]
[372733468,1752748250135,-1352.58,0.00020568,2]
[372733470,1752748250145,-500.0,0.0002061,2]
[372733472,1752748250155,-3000.0,0.00020612,2]
[372733474,1752748250165,-320.9233043,0.00020632,2]
[372733476,1752748250174,-16546.21594871,0.00020659,3]
[372733478,1752748250183,-1000.0,0.00020718,2]
[372733480,1752748250192,-1000.0,0.00020718,2]
[372733482,1752748250202,-663.56368296,0.00020718,2]
[372733484,1752748250211,-1000.0,0.00020718,2]
[372733485,1752748250220,-500.0,0.00020722,2]
[372733487,1752748250229,-535.78515,0.00020728,3]
[372733489,1752748250239,-336.9,0.00020735,4]
[372733491,1752748250248,-212.0,0.00020744,2]
[372733493,1752748250257,-3829.0,0.00020756,2]
[372733495,1752748250267,-3829.0,0.0002077,2]
[372733497,1752748250276,-3020.90887833,0.00020776,2]
[372733499,1752748250285,-3998.31566355,0.00020776,2]
[372733501,1752748250295,-4015.3536666,0.00020776,2]
[372733503,1752748250305,-3829.0,0.00020785,2]
[372733505,1752748250316,-159.7589233,0.00020795,2]
[372733507,1752748250325,-576.958633,0.00020795,2]
[372733509,1752748250335,-159.7589235,0.00020795,2]
[372733511,1752748250343,-576.958633,0.00020795,2]
[372733513,1752748250353,-159.7589233,0.00020795,2]
[372733515,1752748250363,-576.958633,0.00020795,2]
[372733517,1752748250372,-151.0,0.000208,4]
[372733519,1752748250381,-1304.83,0.00020833,2]
[372733521,1752748250391,-3403.72,0.00020835,2]
[372733523,1752748250400,-2746.61,0.00020835,2]
[372733524,1752748250409,-2633.16,0.00020835,2]
[372733526,1752748250420,-598.18,0.00020835,2]
[372733529,1752748250430,-460.0,0.00020835,2]
[372733530,1752748250439,-1025.92,0.00020835,2]
[372733532,1752748250448,-1168.37,0.00020835,2]
[372733534,1752748250458,-533.73,0.00020835,2]
[372733536,1752748250467,-460.0,0.00020835,2]
[372733538,1752748250477,-460.0,0.00020837,2]
[372733540,1752748250488,-647.57,0.00020837,2]
[372733542,1752748250498,-543.85,0.00020837,2]
[372733544,1752748250509,-521.29,0.00020837,2]
[372733546,1752748250519,-843.3,0.00020837,2]
[372733548,1752748250529,-460.0,0.00020837,2]
[372733550,1752748250539,-485.68,0.00020837,2]
[372733552,1752748250548,-614.22,0.00020837,2]
[372733554,1752748250558,-460.0,0.00020837,2]
[372733556,1752748250568,-534.51,0.00020837,2]
[372733558,1752748250579,-460.0,0.00020837,2]
[372733561,1752748250591,-460.0,0.00020838,2]
[372733562,1752748250601,-3796.69,0.00020838,2]
[372733564,1752748250611,-460.0,0.00020838,2]
[372733566,1752748250621,-1252.7,0.00020838,2]
[372733568,1752748250630,-531.15,0.00020838,2]
[372733570,1752748250640,-1517.43,0.00020838,2]
[372733572,1752748250649,-460.0,0.00020838,2]
[372733574,1752748250659,-1578.46,0.00020839,2]
[372733576,1752748250668,-1512.69,0.00020839,2]
[372733578,1752748250677,-539.39,0.00020842,2]
[372733580,1752748250687,-541.25,0.00020842,2]
[372733582,1752748250696,-566.44,0.00020842,2]
[372733584,1752748250706,-417.79,0.00020842,2]
[372733586,1752748250715,-475.56,0.00020842,2]
[372733588,1752748250724,-1182.36,0.00020842,2]
[372733590,1752748250734,-712.85,0.00020842,2]
[372733592,1752748250743,-2275.09,0.00020842,2]
[372733594,1752748250752,-460.0,0.00020842,2]
[372733596,1752748250762,-1525.12,0.00020842,2]
[372733598,1752748250772,-644.59,0.00020842,2]
[372733600,1752748250781,-4545.3,0.00020842,2]
[372733602,1752748250789,-1352.58,0.00020842,2]
[372733604,1752748250798,-367.5179801,0.00020877,2]
[372733606,1752748250808,-1000.0,0.00020884,2]
[372733608,1752748250817,-1000.0,0.00020884,2]
[372733610,1752748250827,-821.62587952,0.00020884,2]
[372733612,1752748250836,-348.63922981,0.00020884,2]
[372733614,1752748250846,-1000.0,0.00020884,2]
[372733615,1752748250855,-1000.0,0.00020884,2]
[372733618,1752748250865,-1000.0,0.00020884,2]
[372733620,1752748250875,-540.13657752,0.00020884,2]
[372733621,1752748250884,-1000.0,0.00020884,2]
[372733623,1752748250893,-3829.0,0.00020923,2]
[372733626,1752748250903,-16546.21594871,0.00020934,4]
[372733627,1752748250913,-360.0,0.00020979,2]
[372733629,1752748250923,-4322.0,0.00020986,2]
[372733631,1752748250932,-873.7273743,0.00021014,2]
[372733633,1752748250942,-3829.0,0.00021014,2]
[372733635,1752748250952,-2000.0,0.00021016,2]
[372733637,1752748250961,-215.0738,0.00021025,2]
[372733639,1752748250972,-535.78515,0.00021039,2]
[372733641,1752748250981,-815.24222298,0.00021042,2]
[372733643,1752748250991,-3829.0,0.00021046,2]
[372733645,1752748251001,-3829.0,0.00021062,2]
[372733647,1752748251010,-800.0,0.00021064,2]
[372733649,1752748251020,-535.78515,0.00021072,4]
[372733651,1752748251030,-1339.522,0.00021107,2]
[372733653,1752748251040,-1304.83,0.00021107,2]
[372733655,1752748251050,-3403.72,0.00021109,2]
[372733657,1752748251060,-2746.61,0.00021109,2]
[372733659,1752748251070,-2633.16,0.00021109,2]
[372733661,1752748251080,-598.18,0.00021109,2]
[372733664,1752748251090,-460.0,0.00021109,2]
[372733665,1752748251101,-1025.92,0.00021109,2]
[372733668,1752748251111,-1168.37,0.00021109,2]
[372733669,1752748251121,-533.73,0.00021109,2]
[372733671,1752748251131,-460.0,0.00021109,2]
[372733673,1752748251142,-516.28432565,0.00021111,2]
[372733675,1752748251151,-647.57,0.00021111,2]
[372733677,1752748251160,-543.85,0.00021111,2]
[372733679,1752748251171,-521.29,0.00021111,2]
[372733681,1752748251181,-843.3,0.00021111,2]
[372733683,1752748251191,-460.0,0.00021111,2]
[372733685,1752748251200,-485.68,0.00021111,2]
[372733687,1752748251209,-614.22,0.00021111,2]
[372733689,1752748251219,-460.0,0.00021111,2]
[372733691,1752748251229,-534.51,0.00021111,2]
[372733693,1752748251238,-460.0,0.00021111,2]
[372733695,1752748251247,-460.0,0.00021112,2]
[372733697,1752748251258,-3796.69,0.00021112,2]
[372733699,1752748251267,-460.0,0.00021112,2]
[372733701,1752748251276,-1252.7,0.00021112,2]
[372733703,1752748251285,-531.15,0.00021112,2]
[372733705,1752748251299,-1517.43,0.00021112,2]
[372733707,1752748251309,-460.0,0.00021112,2]
[372733709,1752748251322,-1578.46,0.00021113,2]
[372733711,1752748251332,-539.39,0.00021116,2]
[372733713,1752748251341,-541.25,0.00021116,2]
[372733715,1752748251351,-475.56,0.00021116,2]
[372733717,1752748251361,-1182.36,0.00021116,2]
[372733719,1752748251371,-712.85,0.00021116,2]
[372733721,1752748251380,-2275.09,0.00021116,2]
[372733734,1752748251501,-460.0,0.00021116,2]
[372733736,1752748251511,-1525.12,0.00021116,2]
[372733738,1752748251520,-644.59,0.00021116,2]
[372733740,1752748251530,-4545.3,0.00021116,2]
[372733742,1752748251540,-1352.58,0.00021116,2]
[372733744,1752748251549,-2155.0,0.00021146,2]
[372733746,1752748251559,-968.0,0.00021146,2]
[372733748,1752748251569,-407.0,0.00021146,2]
[372733750,1752748251578,-414.376,0.00021146,2]
[372733752,1752748251588,-500.0,0.00021157,2]
[372733754,1752748251597,-150.095,0.00021158,2]
[372733756,1752748251606,-150.13,0.00021158,2]
[372733758,1752748251617,-3500.0,0.0002116,2]
[372733760,1752748251627,-500.0,0.00021172,2]
[372733762,1752748251636,-432.0133555,0.00021179,2]
[372733764,1752748251646,-336.9,0.00021187,4]
[372733766,1752748251655,-16546.21594871,0.0002121,4]
[372733768,1752748251665,-800.0,0.00021215,2]
[372733770,1752748251675,-177.0,0.00021219,2]
[372733772,1752748251685,-1500.0,0.00021266,2]
[372733774,1752748251695,-613.72738664,0.00021266,2]
[372733776,1752748251704,-1500.0,0.00021266,2]
[372733778,1752748251714,-3829.0,0.0002127,2]
[372733780,1752748251723,-150.253,0.00021285,2]
[372733782,1752748251734,-151.011,0.00021285,2]
[372733784,1752748251744,-150.461,0.00021285,2]
[372733786,1752748251754,-218.115,0.00021285,2]
[372733788,1752748251763,-151.0,0.000213,3]
[372733790,1752748251772,-2116.71091693,0.00021332,2]
[372733792,1752748251782,-800.0,0.00021349,2]
[372733794,1752748251792,-1304.83,0.00021381,2]
[372733796,1752748251802,-3403.72,0.00021383,2]
[372733798,1752748251811,-2746.61,0.00021383,2]
[372733800,1752748251821,-2633.16,0.00021383,2]
[372733802,1752748251831,-598.18,0.00021383,2]
[372733804,1752748251840,-460.0,0.00021383,2]
[372733806,1752748251850,-1025.92,0.00021383,2]
[372733808,1752748251859,-1168.37,0.00021383,2]
[372733810,1752748251868,-533.73,0.00021383,2]
[372733812,1752748251878,-460.0,0.00021383,2]
[372733814,1752748251887,-647.57,0.00021385,2]
[372733815,1752748251897,-543.85,0.00021385,2]
[372733817,1752748251906,-521.29,0.00021385,2]
[372733819,1752748251916,-843.3,0.00021385,2]
[372733821,1752748251925,-460.0,0.00021385,2]
[372733823,1752748251935,-485.68,0.00021385,2]
[372733826,1752748251945,-614.22,0.00021385,2]
[372733827,1752748251955,-460.0,0.00021385,2]
[372733829,1752748251964,-534.51,0.00021385,2]
[372733832,1752748251974,-460.0,0.00021385,2]
[372733834,1752748251984,-460.0,0.00021386,2]
[372733836,1752748251993,-3796.69,0.00021386,2]
[372733838,1752748252003,-460.0,0.00021386,2]
[372733840,1752748252014,-1252.7,0.00021386,2]
[372733842,1752748252024,-531.15,0.00021386,2]
[372733844,1752748252033,-1517.43,0.00021386,2]
[372733846,1752748252043,-151.0,0.00021386,2]
[372733848,1752748252053,-460.0,0.00021386,2]
[372733850,1752748252062,-1578.46,0.00021387,2]
[372733852,1752748252072,-539.39,0.0002139,2]
[372733854,1752748252082,-541.25,0.0002139,2]
[372733856,1752748252092,-475.56,0.0002139,2]
[372733858,1752748252101,-1182.36,0.0002139,2]
[372733860,1752748252111,-712.85,0.0002139,2]
[372733862,1752748252120,-2275.09,0.0002139,2]
[372733864,1752748252129,-460.0,0.0002139,2]
[372733866,1752748252139,-1525.12,0.0002139,2]
[372733868,1752748252149,-644.59,0.0002139,2]
[372733870,1752748252158,-4545.3,0.0002139,2]
[372733872,1752748252168,-1352.58,0.0002139,2]
[372733873,1752748252177,-2351.0,0.00021428,2]
[372733875,1752748252187,-1500.0,0.00021432,2]
[372733877,1752748252197,-1500.0,0.00021432,2]
[372733879,1752748252206,-1500.0,0.00021432,2]
[372733881,1752748252215,-500.0,0.00021432,2]
[372733883,1752748252226,-1500.0,0.00021432,2]
[372733885,1752748252236,-1500.0,0.00021432,2]
[372733887,1752748252245,-3829.0,0.0002145,2]
[372733889,1752748252255,-151.0,0.00021486,2]
[372733891,1752748252264,-151.0,0.00021486,2]
[372733893,1752748252273,-154.823528,0.00021486,2]
[372733895,1752748252283,-154.823528,0.00021486,2]
[372733897,1752748252292,-336.196286,0.00021486,2]
[372733899,1752748252302,-336.196286,0.00021486,2]
[372733901,1752748252311,-389.789399,0.00021486,2]
[372733902,1752748252324,-389.789399,0.00021486,2]
[372733903,1752748252333,-151.0,0.00021486,2]
[372733904,1752748252342,-16546.21594871,0.00021486,5]
[372733905,1752748252352,-621.6233864,0.000215,4]
[372733906,1752748252362,-10315.58859926,0.000215,2]
[372733907,1752748252372,-600.0,0.00021505,2]
[372733908,1752748252382,-5000.0,0.00021513,2]
[372733909,1752748252391,-460.0,0.00021527,2]
[372733910,1752748252401,-151.0,0.00021555,2]
[372733912,1752748252410,-151.0,0.00021555,2]
[372733914,1752748252419,-151.0,0.00021555,2]
[372733916,1752748252429,-160.0,0.00021564,3]
[372733918,1752748252438,-1811.52945269,0.00021564,2]
[372733920,1752748252447,-7389.38261493,0.00021582,2]
[372733922,1752748252456,-535.78515,0.00021583,3]
[372733924,1752748252466,-151.0,0.000216,3]
[372733926,1752748252475,-159.7589235,0.00021616,2]
[372733928,1752748252485,-576.958633,0.00021616,2]
[372733930,1752748252494,-159.7589233,0.00021616,2]
[372733932,1752748252504,-178.0508326,0.00021616,2]
[372733934,1752748252514,-576.958633,0.00021616,2]
[372733936,1752748252523,-178.0508326,0.00021616,2]
[372733938,1752748252533,-576.958633,0.00021616,2]
[372733940,1752748252542,-159.7589235,0.00021616,2]
[372733942,1752748252552,-178.0508326,0.00021616,2]
[372733944,1752748252562,-159.7589233,0.00021616,2]
[372733946,1752748252571,-576.958633,0.00021616,2]
[372733948,1752748252580,-576.958633,0.00021616,2]
[372733950,1752748252590,-159.7589235,0.00021616,2]
[372733952,1752748252599,-178.0508326,0.00021616,2]
[372733954,1752748252608,-178.0508326,0.00021616,2]
[372733956,1752748252617,-159.7589233,0.00021616,2]
[372733958,1752748252626,-576.958633,0.00021616,2]
[372733960,1752748252636,-159.7589235,0.00021616,2]
[372733962,1752748252646,-178.0508326,0.00021616,2]
[372733964,1752748252655,-576.958633,0.00021616,2]
[372733966,1752748252665,-159.7589233,0.00021616,2]
[372733968,1752748252675,-576.958633,0.00021616,2]
[372733970,1752748252684,-178.0508326,0.00021616,2]
[372733972,1752748252693,-576.958633,0.00021616,2]
[372733974,1752748252703,-159.7589235,0.00021616,2]
[372733976,1752748252712,-178.0508326,0.00021616,2]
[372733978,1752748252721,-178.0508326,0.00021616,2]
[372733980,1752748252730,-159.7589233,0.00021616,2]
[372733982,1752748252739,-280.1898917,0.00021616,2]
[372733984,1752748252749,-159.7589235,0.00021616,2]
[372733986,1752748252759,-178.0508326,0.00021616,2]
[372733988,1752748252768,-159.7589233,0.00021616,2]
[372733990,1752748252777,-358.8364001,0.00021616,2]
[372733992,1752748252787,-159.7589235,0.00021616,2]
[372733994,1752748252797,-159.7589233,0.00021616,2]
[372733996,1752748252806,-159.7589235,0.00021616,2]
[372733998,1752748252817,-159.7589233,0.00021616,2]
[372734000,1752748252827,-159.7314839,0.00021616,2]
[372734002,1752748252836,-336.9,0.00021639,4]
[372734004,1752748252845,-500.0,0.0002165,2]
[372734006,1752748252855,-1304.83,0.00021655,2]
[372734008,1752748252865,-3403.72,0.00021657,2]
[372734011,1752748252875,-2746.61,0.00021657,2]
[372734013,1752748252884,-2633.16,0.00021657,2]
[372734015,1752748252894,-598.18,0.00021657,2]
[372734017,1752748252904,-460.0,0.00021657,2]
[372734019,1752748252913,-1025.92,0.00021657,2]
[372734021,1752748252923,-1168.37,0.00021657,2]
[372734023,1752748252932,-533.73,0.00021657,2]
[372734025,1752748252942,-460.0,0.00021657,2]
[372734027,1752748252953,-647.57,0.00021659,2]
[372734029,1752748252965,-543.85,0.00021659,2]
[372734031,1752748252974,-521.29,0.00021659,2]
[372734033,1752748252984,-843.3,0.00021659,2]
[372734035,1752748252993,-460.0,0.00021659,2]
[372734037,1752748253003,-485.68,0.00021659,2]
[372734039,1752748253013,-614.22,0.00021659,2]
[372734041,1752748253022,-460.0,0.00021659,2]
[372734043,1752748253033,-534.51,0.00021659,2]
[372734045,1752748253043,-241.88,0.00021659,2]
[372734047,1752748253053,-460.0,0.0002166,2]
[372734049,1752748253063,-3796.69,0.0002166,2]
[372734051,1752748253072,-460.0,0.0002166,2]
[372734053,1752748253081,-1252.7,0.0002166,2]
[372734055,1752748253092,-531.15,0.0002166,2]
[372734057,1752748253102,-324.90131655,0.0002166,2]
[372734075,1752748253256,-1192.52868345,0.0002166,2]
[372734077,1752748253265,-460.0,0.0002166,2]
[372734079,1752748253275,-1578.46,0.00021661,2]
[372734081,1752748253284,-539.39,0.00021664,2]
[372734083,1752748253294,-541.25,0.00021664,2]
[372734085,1752748253304,-475.56,0.00021664,2]
[372734086,1752748253314,-1182.36,0.00021664,2]
[372734088,1752748253326,-712.85,0.00021664,2]
[372734091,1752748253335,-2275.09,0.00021664,2]
[372734092,1752748253344,-460.0,0.00021664,2]
[372734095,1752748253354,-1525.12,0.00021664,2]
[372734096,1752748253363,-644.59,0.00021664,2]
[372734098,1752748253372,-4545.3,0.00021664,2]
[372734101,1752748253382,-1352.58,0.00021664,2]
[372734103,1752748253394,-380.22841907,0.00021708,2]
[372734105,1752748253403,-156.013808,0.00021732,3]
[372734106,1752748253412,-153.0,0.00021759,2]
[372734109,1752748253423,-153.0,0.00021759,2]
[372734111,1752748253432,-153.0,0.00021759,2]
[372734113,1752748253442,-153.0,0.00021759,2]
[372734114,1752748253451,-14216.38718823,0.00021762,5]
[372734117,1752748253464,-2329.82876048,0.00021762,5]
[372734119,1752748253473,-168.586891,0.00021771,2]
[372734121,1752748253482,-168.586891,0.00021771,2]
[372734123,1752748253492,-3829.0,0.00021779,2]
[372734125,1752748253501,-162.95721284,0.00021781,2]
[372734127,1752748253510,-151.0,0.00021796,2]
[372734129,1752748253520,-500.0,0.000218,2]
[372734131,1752748253529,-1009.39120736,0.00021814,2]
[372734133,1752748253539,-2000.0,0.00021814,2]
[372734135,1752748253549,-588.52638377,0.00021817,2]
[372734162,1752748253797,-500.0,0.00017817,2]
[372734164,1752748253807,-500.0,0.00017817,2]
[372734166,1752748253817,-460.0,0.00017817,2]
[372734168,1752748253826,-460.0,0.00017817,2]
[372734170,1752748253836,-460.0,0.00017821,2]
[372734172,1752748253846,-460.0,0.00017823,2]
[372734174,1752748253856,-460.0,0.00017824,2]
[372734176,1752748253865,-460.0,0.00017828,2]
[372734178,1752748253875,-460.0,0.00018091,2]
[372734180,1752748253885,-460.0,0.00018095,2]
[372734195,1752748254018,-460.0,0.00018098,2]
[372734197,1752748254029,-460.0,0.00018365,2]
[372734199,1752748254039,-460.0,0.00018372,2]
[372734202,1752748254050,-548.8523063,0.00018639,2]
[372734203,1752748254059,-460.0,0.00018646,2]
[372734205,1752748254069,-460.0,0.0001892,2]
[372734207,1752748254079,-460.0,0.00019194,2]
[372734209,1752748254089,-151.0,0.00019656,2]
[372734211,1752748254099,-151.0,0.00019656,2]
[372734213,1752748254108,-151.0,0.00019656,2]
[372734215,1752748254118,-151.0,0.00019656,2]
[372734217,1752748254127,-151.0,0.00019656,2]
[372734219,1752748254137,-151.0,0.00019656,2]
[372734222,1752748254148,-3240.47361623,0.00021817,2]
[372734224,1752748254157,-2200.0,0.00021833,2]
[372734226,1752748254167,-501.203,0.00021833,2]
[372734228,1752748254178,-178.0508326,0.00021836,2]
[372734230,1752748254187,-151.0,0.00021843,2]
[372734232,1752748254197,-154.520371,0.00021843,2]
[372734234,1752748254207,-154.520371,0.00021843,2]
[372734236,1752748254217,-3829.0,0.00021843,2]
[372734238,1752748254227,-1551.89005,0.00021869,8]
[372734240,1752748254237,-3296.49234646,0.000219,2]
[372734242,1752748254246,-7993.76570528,0.000219,2]
[372734244,1752748254256,-10547.29457622,0.00021916,2]
[372734246,1752748254266,-500.0,0.00021917,2]
[372734248,1752748254276,-500.0,0.00021917,2]
[372734250,1752748254285,-500.0,0.00021917,2]
[372734252,1752748254296,-500.0,0.00021917,2]
[372734254,1752748254305,-500.0,0.00021917,2]
[372734256,1752748254319,-500.0,0.00021917,2]
[372734258,1752748254329,-500.0,0.00021917,2]
[372734260,1752748254338,-510.76042761,0.00021917,2]
[372734262,1752748254348,-445.42643,0.00021918,2]
[372734264,1752748254359,-445.42643,0.00021918,2]
[372734266,1752748254369,-200.0,0.00021918,2]
[372734268,1752748254379,-150.0,0.00021918,2]
[372734270,1752748254388,-1304.83,0.00021929,2]
[372734272,1752748254400,-3403.72,0.00021931,2]
[372734274,1752748254409,-2746.61,0.00021931,2]
[372734276,1752748254419,-2633.16,0.00021931,2]
[372734278,1752748254429,-598.18,0.00021931,2]
[372734280,1752748254438,-460.0,0.00021931,2]
[372734282,1752748254448,-1025.92,0.00021931,2]
[372734284,1752748254458,-1168.37,0.00021931,2]
[372734286,1752748254467,-533.73,0.00021931,2]
[372734288,1752748254477,-460.0,0.00021931,2]
[372734290,1752748254487,-647.57,0.00021933,2]
[372734292,1752748254496,-543.85,0.00021933,2]
[372734295,1752748254506,-521.29,0.00021933,2]
[372734297,1752748254516,-843.3,0.00021933,2]
[372734299,1752748254525,-460.0,0.00021933,2]
[372734301,1752748254535,-485.68,0.00021933,2]
[372734303,1752748254545,-614.22,0.00021933,2]
[372734305,1752748254555,-460.0,0.00021933,2]
[372734307,1752748254564,-534.51,0.00021933,2]
[372734309,1752748254574,-231.44,0.00021934,2]
[372734311,1752748254583,-3796.69,0.00021934,2]
[372734313,1752748254593,-460.0,0.00021934,2]
[372734315,1752748254603,-1252.7,0.00021934,2]
[372734317,1752748254612,-531.15,0.00021934,2]
[372734319,1752748254621,-1517.43,0.00021934,2]
[372734321,1752748254630,-460.0,0.00021934,2]
[372734323,1752748254640,-160.0,0.00021935,4]
[372734325,1752748254649,-1578.46,0.00021935,2]
[372734327,1752748254658,-539.39,0.00021938,2]
[372734329,1752748254667,-541.25,0.00021938,2]
[372734331,1752748254676,-475.56,0.00021938,2]
[372734333,1752748254686,-1182.36,0.00021938,2]
[372734335,1752748254696,-712.85,0.00021938,2]
[372734337,1752748254705,-216.06391012,0.00021938,2]
[372734339,1752748254714,-1525.12,0.00021938,2]
[372734341,1752748254724,-644.59,0.00021938,2]
[372734343,1752748254733,-4545.3,0.00021938,2]
[372734345,1752748254743,-1352.58,0.00021938,2]
[372734347,1752748254751,-3829.0,0.00021959,2]
[372734349,1752748254761,-1000.0,0.00021965,5]
[372734352,1752748254770,-151.0,0.00021969,7]
[372734354,1752748254779,-151.0,0.00021969,7]
[372734356,1752748254788,-151.0,0.00021969,7]
[372734358,1752748254798,-500.0,0.00021973,2]
[372734360,1752748254808,-150.0,0.00021973,2]
[372734362,1752748254818,-2000.0,0.0002198,2]
[372734364,1752748254827,-2000.0,0.0002198,2]
[372734366,1752748254837,-2000.0,0.0002198,2]
[372734368,1752748254847,-1789.48901587,0.0002198,2]
[372734370,1752748254856,-2000.0,0.0002198,2]
[372734372,1752748254866,-800.0,0.00021994,2]
[372734374,1752748254875,-178.421169,0.00022,7]
[372734376,1752748254885,-168.586891,0.00022,7]
[372734378,1752748254895,-168.586891,0.00022,7]
[372734380,1752748254904,-33707.48,0.00022,7]
[372734382,1752748254913,-162.95721284,0.00022,2]
[372734384,1752748254922,-4089.19,0.00022,7]
[372734386,1752748254931,-7736.05,0.00022,7]
[372734388,1752748254941,-69968.4,0.00022,2]
[372734390,1752748254950,-151.0,0.00022,7]
[372734392,1752748254959,-197.674532,0.00022,7]
[372734394,1752748254969,-197.674532,0.00022,7]
[372734396,1752748254978,-1000.0,0.00022,2]
[372734398,1752748254988,-1000.0,0.00022,2]
[372734400,1752748254997,-1000.0,0.00022,2]
[372734402,1752748255008,-1000.0,0.00022,2]
[372734404,1752748255018,-1000.0,0.00022,2]
[372734406,1752748255027,-1000.0,0.00022,2]
[372734408,1752748255037,-1000.0,0.00022,2]